bitfinex/quotes_ETHUSD_20241129
["timestamp","ask_amount","ask_price","bid_price","bid_amount"]
[1732891887796,0.8049,3626.0,3625.5,2.75822]
[1732891889039,0.8049,3626.0,3625.2,0.59839153]
[1732891889450,0.8049,3626.0,3625.3,2.75832]
[1732891889824,0.8049,3626.0,3625.4,2.75831]
[1732891892551,0.8049,3626.0,3625.2,3.35685153]
[1732891892720,0.8049,3626.0,3625.2,2.75841]
[1732891892923,0.20625589,3625.9,3625.2,2.75841]
[1732891893119,0.8049,3626.0,3625.2,2.75841]
[1732891893321,0.20625506,3625.9,3625.2,2.75841]
[1732891893675,0.8049,3626.0,3625.2,2.75841]
[1732891893887,0.8049,3626.0,3625.2,2.75843]
[1732891894066,0.20630496,3625.9,3625.2,2.75843]
[1732891894261,0.8049,3626.0,3625.2,2.75843]
[1732891894465,0.20637276,3625.9,3625.2,2.75843]
[1732891894697,0.8049,3626.0,3625.2,2.75843]
[1732891894897,0.20637344,3625.9,3625.2,2.75843]
[1732891895104,0.8049,3626.0,3625.2,2.75843]
[1732891895270,0.20637445,3625.9,3625.2,2.75843]
[1732891895472,0.20637445,3625.8,3625.2,2.75843]
[1732891895659,0.8049,3626.0,3625.2,2.75843]
[1732891895854,0.20643806,3625.9,3625.2,2.75843]
[1732891896195,0.20643806,3625.8,3625.3,2.75837]
[1732891896395,0.8049,3626.0,3625.3,2.75837]
[1732891896592,0.20645453,3625.9,3625.3,2.75837]
[1732891896756,0.20645453,3625.8,3625.3,2.75837]
[1732891896951,0.8049,3626.0,3625.4,2.75829]
[1732891897356,0.20644595,3625.9,3625.4,2.75829]
[1732891897698,0.8049,3626.0,3625.4,2.75829]
[1732891897999,0.8049,3626.0,3625.7,2.75807]
[1732891898505,0.8049,3626.0,3625.6,2.75813]
[1732891898705,0.8049,3626.0,3625.6,0.90071399]
[1732891899159,0.8049,3626.0,3625.4,2.67194986]
[1732891899497,0.8049,3626.0,3625.4,5.43021986]
[1732891899673,0.8049,3626.0,3625.5,2.75821]
[1732891901506,0.8049,3626.0,3625.4,2.67194986]
[1732891901856,0.20646484,3625.9,3625.0,2.67194986]
[1732891902052,0.99926484,3625.8,3625.0,5.43055986]
[1732891902303,0.20646484,3625.7,3625.0,6.3872704]
[1732891902506,0.20646484,3625.6,3625.0,3.6286604]
[1732891902815,0.7928,3625.8,3625.0,2.67194986]
[1732891902816,0.20646484,3625.5,3625.0,2.67194986]
[1732891903010,0.96261533,3625.4,3624.6,2.67194986]
[1732891903295,0.7561,3625.4,3624.8,2.7587]
[1732891905069,0.7561,3625.4,3624.6,5.43085986]
[1732891905570,0.7561,3625.4,3624.7,2.75883]
[1732891905761,0.7561,3625.4,3624.8,2.75872]
[1732891906212,0.33040062,3625.8,3625.1,2.75854]
[1732891906369,0.7926,3625.9,3625.6,2.67194986]
[1732891906573,0.7926,3625.9,3624.9,2.75862]
[1732891906792,1.423425,3625.9,3624.9,2.75862]
[1732891906998,0.7926,3625.9,3625.6,2.67194986]
[1732891907211,0.41295868,3625.8,3625.6,2.67194986]
[1732891907379,0.20647814,3625.8,3625.6,2.67194986]
[1732891908069,0.20647814,3625.8,3625.6,5.43003986]
[1732891908268,0.20647814,3625.8,3625.7,2.75808]
[1732891908711,0.20647814,3625.8,3625.6,6.32474085]
[1732891908917,0.7752,3625.7,3625.6,2.67194986]
[1732891909525,0.20647814,3625.8,3625.6,2.67194986]
[1732891909666,0.20647814,3625.8,3625.6,5.43010986]
[1732891910015,0.20647814,3625.8,3625.6,2.67194986]
[1732891910163,0.20647814,3625.8,3625.7,0.7583]
[1732891910368,0.20647814,3625.8,3625.7,4.40241697]
[1732891910869,0.20647814,3625.8,3625.7,3.64411697]
[1732891911068,0.20647814,3625.8,3625.7,2.75808]
[1732891911503,0.20647814,3625.8,3625.5,5.43011986]
[1732891911710,0.20647814,3625.8,3625.6,2.75816]
[1732891911881,0.20647814,3625.8,3625.5,2.67194986]
[1732891913530,0.20647814,3625.8,3625.1,3.5742]
[1732891913531,0.20647814,3625.8,3625.1,2.67194986]
[1732891914031,0.20647814,3625.8,3625.1,5.43047986]
[1732891914342,0.20663603,3625.7,3625.1,5.43047986]
[1732891914490,0.33061466,3626.0,3625.3,2.75838]
[1732891914697,0.20663355,3625.9,3625.1,2.67194986]
[1732891914930,0.20663355,3625.8,3625.2,2.75841]
[1732891915099,0.8251,3626.1,3625.1,2.67194986]
[1732891915304,0.20662189,3626.0,3625.1,5.43042986]
[1732891915492,0.20662189,3625.9,3625.1,5.43042986]
[1732891915693,0.20662189,3625.8,3625.2,2.75845]
[1732891915895,0.37893619,3626.0,3625.2,2.75845]
[1732891916221,0.20662609,3625.9,3625.3,0.02758144]
[1732891916533,0.8251,3626.1,3625.2,2.75846]
[1732891916691,0.8251,3626.1,3625.3,2.75832]
[1732891916891,0.20662292,3626.0,3625.3,2.75832]
[1732891917240,0.20662292,3625.9,3625.3,2.75832]
[1732891917399,0.8251,3626.1,3625.4,2.7583]
[1732891917730,0.2066187,3626.0,3625.2,2.7584]
[1732891917891,0.2066187,3625.9,3625.3,2.75837]
[1732891918244,0.8251,3626.1,3625.5,2.67194986]
[1732891918411,0.8251,3626.1,3625.6,2.75811]
[1732891918936,0.8251,3626.1,3625.6,0.55]
[1732891919433,0.8134,3626.5,3626.0,0.55]
[1732891919646,0.20659284,3626.4,3626.0,0.55]
[1732891919792,0.8134,3626.5,3626.0,0.55]
[1732891920193,0.20659072,3626.4,3626.0,0.55]
[1732891920449,0.20659072,3626.3,3626.0,0.55]
[1732891920636,2.75756,3626.4,3625.5,2.67194986]
[1732891920805,0.99199278,3626.3,3625.6,0.55]
[1732891921012,0.20659278,3626.2,3625.6,0.55]
[1732891921220,0.7854,3626.1,3625.5,2.67194986]
[1732891921547,0.20659278,3626.0,3625.5,2.67194986]
[1732891921833,0.33057148,3626.3,3625.9,2.67194986]
[1732891921996,0.7854,3626.4,3625.9,3.21495785]
[1732891922397,0.7854,3626.4,3625.9,5.97281785]
[1732891922632,0.7854,3626.4,3626.0,0.55]
[1732891922947,1.14813102,3627.2,3626.4,0.55]
[1732891923241,1.14813102,3627.2,3626.3,2.67194986]
[1732891923242,0.8177,3627.0,3626.3,2.67194986]
[1732891923393,0.94800555,3626.9,3626.1,2.75773]
[1732891923601,0.20651445,3626.8,3626.0,0.55]
[1732891923799,0.20651445,3626.8,3625.9,5.42984986]
[1732891923800,0.20651445,3626.7,3626.1,2.75776]
[1732891924103,0.20651445,3626.6,3626.1,2.75776]
[1732891924334,0.20651445,3626.6,3625.9,5.42984986]
[1732891924335,0.20651445,3626.6,3626.2,2.75763]
[1732891924536,0.33033765,3626.9,3626.2,2.75763]
[1732891924726,0.33033765,3626.9,3626.3,2.67194986]
[1732891925040,0.72083742,3626.9,3626.0,2.75785]
[1732891925441,0.39049977,3626.9,3626.1,2.75776]
[1732891925764,0.20645359,3626.8,3626.1,2.75776]
[1732891926334,0.41288106,3626.7,3626.1,2.75773]
[1732891926497,0.20642747,3626.7,3626.1,2.75773]
[1732891926896,0.08621826,3626.6,3626.1,2.75773]
[1732891927105,0.08621826,3626.5,3626.1,2.75773]
[1732891927322,0.8177,3627.0,3626.4,2.67194986]
[1732891927533,0.29257096,3626.9,3626.4,2.67194986]
[1732891927699,0.29257096,3626.8,3626.2,2.75767]
[1732891927912,0.29257096,3626.7,3626.2,2.75767]
[1732891928141,0.29257096,3626.6,3626.2,2.75767]
[1732891928361,0.08621292,3626.5,3626.4,2.67194986]
[1732891928499,0.20633649,3626.9,3626.4,2.67194986]
[1732891928700,0.29255779,3626.8,3626.4,2.67194986]
[1732891928952,0.29255779,3626.7,3626.4,2.67194986]
[1732891929135,0.08621503,3626.6,3626.4,2.67194986]
[1732891929444,0.08621503,3626.5,3626.4,2.67194986]
[1732891930235,0.08621503,3626.5,3626.0,5.42975986]
[1732891930437,0.90251503,3626.4,3626.0,2.67194986]
[1732891930735,0.08622071,3626.3,3626.0,2.67194986]
[1732891930938,0.8163,3626.4,3625.8,2.75796]
[1732891931440,0.08622429,3626.3,3625.8,2.75796]
[1732891931638,0.8163,3626.4,3625.9,2.7579]
[1732891931840,0.08622411,3626.3,3625.8,0.81880599]
[1732891932010,0.8163,3626.4,3625.6,5.43005986]
[1732891932224,0.29254942,3626.3,3625.6,5.43005986]
[1732891932427,0.29254942,3626.2,3625.7,2.75807]
[1732891932602,0.08622721,3626.1,3625.6,2.67194986]
[1732891932939,0.8163,3626.4,3625.6,2.67194986]
[1732891932940,0.08622721,3626.0,3625.6,2.67194986]
[1732891933139,0.20633854,3626.3,3625.7,2.75803]
[1732891933326,0.08622741,3626.2,3625.7,2.75803]
[1732891933525,0.08622741,3626.1,3625.7,2.75803]
[1732891934044,0.08622741,3626.0,3625.7,2.75803]
[1732891934232,0.20637176,3626.3,3625.9,5.42985986]
[1732891934546,2.75725,3626.8,3625.9,5.42985986]
[1732891934851,0.29261252,3626.7,3626.0,2.75785]
[1732891935050,0.29261252,3626.6,3626.5,2.67194986]
[1732891935257,0.08621941,3626.6,3626.5,2.67194986]
[1732891935457,0.08621941,3626.6,3626.1,0.89486099]
[1732891935615,0.794,3627.0,3626.1,5.42966986]
[1732891935814,0.20642048,3626.9,3626.1,5.42966986]
[1732891936128,0.20642048,3626.8,3626.2,2.7577]
[1732891936330,0.20642048,3626.7,3626.2,2.7577]
[1732891936551,0.794,3627.0,3626.2,2.7577]
[1732891936858,0.20641963,3626.9,3626.4,2.75752]
[1732891937056,0.20641963,3626.8,3626.4,2.75754]
[1732891937253,0.794,3627.0,3626.4,2.75754]
[1732891937555,0.20641703,3626.9,3626.5,3.53996]
[1732891937772,0.20637916,3627.2,3626.8,5.34389972]
[1732891937916,0.20635276,3627.6,3627.2,0.763]
[1732891938118,0.20633728,3628.0,3627.7,2.7565]
[1732891938331,0.20633728,3628.0,3627.5,2.75666]
[1732891938332,0.8046,3628.4,3627.8,0.2566445]
[1732891938538,0.2061307,3628.3,3627.9,2.92859436]
[1732891938743,0.8046,3628.4,3628.2,2.67194986]
[1732891939059,0.8046,3629.0,3628.3,0.2566445]
[1732891939213,0.20611101,3628.9,3628.6,2.67194986]
[1732891939419,0.20611101,3628.9,3628.6,5.42782986]
[1732891939420,0.20580717,3628.9,3628.6,5.42782986]
[1732891939731,0.8046,3629.3,3628.7,0.2566445]
[1732891939936,0.20580717,3629.2,3628.8,0.2566445]
[1732891940116,0.20580717,3629.2,3628.6,2.67194986]
[1732891940316,0.8046,3629.3,3628.6,2.67194986]
[1732891940815,0.8046,3629.3,3628.7,0.25518896]
[1732891941014,0.8046,3629.3,3628.6,2.67194986]
[1732891942426,0.1543464,3629.5,3629.0,2.67194986]
[1732891942648,2.75551,3629.1,3628.6,2.67194986]
[1732891942843,0.55,3628.9,3627.6,3.49894986]
[1732891943059,2.75634,3628.0,3627.7,0.25481338]
[1732891943217,0.8303,3628.1,3627.2,2.67194986]
[1732891943412,0.8303,3628.1,3627.6,2.67194986]
[1732891943666,0.8303,3628.1,3627.7,0.25482782]
[1732891943921,0.8303,3628.1,3627.6,2.67194986]
[1732891944249,2.75587,3628.7,3628.0,2.67194986]
[1732891944458,3.51363,3628.8,3628.0,2.67194986]
[1732891944640,0.7579,3628.8,3628.0,2.67194986]
[1732891944953,3.51368,3628.8,3628.0,2.67194986]
[1732891945355,0.7579,3628.8,3628.0,5.69543485]
[1732891945522,0.7579,3628.9,3628.0,2.93914485]
[1732891945860,2.75574,3628.8,3628.0,2.67194986]
[1732891946026,2.75574,3628.8,3628.1,0.25466426]
[1732891946441,0.7579,3628.9,3628.1,0.25466426]
[1732891946641,0.7579,3628.9,3628.2,0.25466426]
[1732891946840,3.58492,3629.1,3628.0,2.67194986]
[1732891947056,2.75558,3629.0,3628.1,0.79740326]
[1732891947256,2.75558,3629.0,3628.2,0.25456727]
[1732891947620,2.75579,3628.8,3628.1,0.54283599]
[1732891947843,0.8294,3629.1,3628.0,2.67194986]
[1732891947844,2.75567,3628.9,3628.0,2.67194986]
[1732891948045,3.5849,3629.1,3628.0,2.67194986]
[1732891948251,2.75574,3628.8,3628.0,2.67194986]
[1732891948460,0.8294,3629.1,3628.0,2.67194986]
[1732891948657,2.75587,3628.7,3628.0,2.67194986]
[1732891948851,2.75582,3628.7,3628.0,2.67194986]
[1732891949451,2.75589,3628.6,3628.0,2.67194986]
[1732891949638,2.75575,3628.8,3628.0,2.67194986]
[1732891950172,2.75575,3628.8,3628.0,2.93914485]
[1732891950467,2.75575,3628.8,3627.6,3.8188]
[1732891950468,2.75602,3628.5,3627.6,3.49074986]
[1732891950632,2.75626,3628.1,3627.7,0.25445977]
[1732891950829,2.75612,3628.3,3627.6,3.49074986]
[1732891951335,0.8294,3628.4,3627.6,3.49074986]
[1732891951535,0.8294,3628.4,3627.7,0.25458373]
[1732891951839,0.55955548,3628.6,3628.0,2.67194986]
[1732891952038,3.31544548,3628.6,3628.0,2.67194986]
[1732891952264,2.75597,3628.5,3628.0,2.67194986]
[1732891953142,2.75604,3628.4,3628.0,2.67194986]
[1732891953546,2.75611,3628.3,3627.6,2.67194986]
[1732891953785,2.75628,3628.1,3627.6,2.67194986]
[1732891954340,0.69009455,3628.3,3627.7,0.25456588]
[1732891954566,2.75603,3628.5,3627.6,2.67194986]
[1732891954773,2.75625,3628.2,3627.7,0.25455578]
[1732891954990,2.75636,3628.0,3627.6,2.67194986]
[1732891955282,2.75625,3628.2,3627.7,0.25457975]
[1732891955486,5.51214,3628.4,3627.8,0.25457975]
[1732891955680,2.75598,3628.5,3627.8,0.25457975]
[1732891955977,2.75581,3628.7,3628.0,2.67194986]
[1732891956134,2.75579,3628.8,3628.1,0.7546]
[1732891956339,2.75559,3629.0,3628.2,0.02756031]
[1732891956563,0.5625336,3628.7,3628.1,0.7546]
[1732891956882,0.5625336,3628.7,3628.2,0.2545443]
[1732891957081,0.5625336,3628.7,3628.2,0.02755871]
[1732891957249,0.5625336,3628.7,3628.3,0.25458401]
[1732891957470,2.75551,3629.1,3628.4,2.69950856]
[1732891957797,2.75551,3629.1,3628.4,2.67194986]
[1732891958573,3.306598,3629.1,3628.4,2.67194986]
[1732891959107,3.6864464,3629.5,3628.8,2.67194986]
[1732891959392,2.75535,3629.4,3628.9,0.8209]
[1732891960071,2.75535,3629.3,3628.9,0.8209]
[1732891960268,2.9095464,3629.5,3628.9,0.8209]
[1732891960269,0.56282952,3629.1,3628.9,0.8209]
[1732891960600,2.75533,3629.4,3628.9,0.8209]
[1732891960902,0.1543464,3629.5,3628.9,0.8209]
[1732891961069,0.53961039,3629.3,3628.9,0.8209]
[1732891962496,0.53961039,3629.3,3629.0,0.25483561]
[1732891962809,0.53961039,3629.3,3629.1,0.25483561]
[1732891962955,0.53961039,3629.3,3628.9,0.8209]
[1732891963154,0.53961039,3629.3,3629.0,0.25483149]
[1732891963358,0.53961039,3629.3,3628.9,0.8209]
[1732891963359,0.53961039,3629.3,3629.1,0.25483149]
[1732891963584,0.53961039,3629.3,3628.9,0.8209]
[1732891963903,0.55,3629.2,3629.0,0.66304798]
[1732891964056,0.55,3629.2,3629.1,0.25501954]
[1732891964691,3.30542,3629.2,3629.1,0.25501954]
[1732891964896,3.30542,3629.2,3629.1,0.25524977]
[1732891965163,3.98089068,3629.2,3629.1,0.25524977]
[1732891965470,4.18662619,3629.2,3629.1,0.25524977]
[1732891966698,4.18662619,3629.2,3629.1,0.66367106]
[1732891966892,4.18662619,3629.2,3628.5,0.79705669]
[1732891967099,0.20573551,3629.1,3628.6,0.25564779]
[1732891967282,0.20573551,3629.0,3628.7,0.25564779]
[1732891967599,2.75557,3629.1,3628.8,0.25564779]
[1732891967757,3.51168427,3629.0,3628.9,0.25564779]
[1732891968975,0.75610427,3629.0,3628.9,0.25564779]
[1732891969785,0.53961039,3629.3,3628.9,1.01734779]
[1732891969988,0.53961039,3629.3,3629.0,0.25564779]
[1732891970216,0.53961039,3629.3,3629.2,5.42736986]
[1732891970383,0.005,3631.4,3629.3,0.7617]
[1732891970582,0.55688637,3630.6,3629.9,3.51659]
[1732891970806,0.55688637,3630.6,3629.9,3.77223779]
[1732891971115,2.75383,3631.3,3629.9,7.09690943]
[1732891971322,0.005,3631.4,3629.9,7.09673183]
[1732891971517,0.54877005,3630.9,3629.9,7.09673183]
[1732891971682,0.005,3631.4,3629.9,7.09673183]
[1732891972079,0.54755694,3631.0,3629.9,7.09673183]
[1732891972530,0.54755694,3631.0,3629.9,4.34184183]
[1732891972702,0.54755694,3631.0,3630.6,2.67194986]
[1732891972901,0.54755694,3631.0,3630.7,0.7958]
[1732891973213,0.54755694,3631.0,3630.8,0.25547019]
[1732891973397,0.54755694,3631.0,3630.9,0.25547019]
[1732891973803,0.54755694,3631.0,3630.9,3.00960019]
[1732891974025,0.005,3631.4,3630.9,0.25547019]
[1732891974345,0.20540701,3631.3,3631.0,0.25547019]
[1732891974502,0.005,3631.4,3630.7,3.55007]
[1732891974708,0.005,3631.4,3630.8,1.15216907]
[1732891974906,0.555,3631.4,3630.9,0.25452508]
[1732891975235,0.005,3631.4,3631.0,0.25452508]
[1732891975402,0.005,3631.4,3630.2,3.0]
[1732891975729,0.005,3631.4,3630.3,3.80015961]
[1732891975934,0.005,3631.4,3630.4,1.20985457]
[1732891976139,0.005,3631.4,3630.5,0.25436961]
[1732891976437,0.005,3631.4,3630.6,0.25436961]
[1732891976637,0.005,3631.4,3630.7,0.25436961]
[1732891976845,0.005,3631.4,3630.8,0.25436961]
[1732891977002,0.005,3631.4,3630.5,2.75443]
[1732891977202,0.005,3631.4,3630.6,1.24696532]
[1732891977410,0.005,3631.4,3630.7,0.25419984]
[1732891977694,0.005,3631.4,3630.8,0.25419984]
[1732891978011,0.005,3631.4,3630.6,0.99276548]
[1732891978327,0.55,3631.3,3630.7,0.25408091]
[1732891978508,3.30388,3631.3,3630.8,0.25408091]
[1732891978723,0.55,3631.0,3630.4,2.67194986]
[1732891978916,0.55,3631.1,3630.5,0.2540017]
[1732891979248,0.55,3631.1,3630.4,2.67194986]
[1732891979249,0.55,3630.9,3630.4,2.67194986]
[1732891979450,0.55,3631.1,3630.4,2.67194986]
[1732891979742,2.75411,3631.0,3630.4,2.67194986]
[1732891979912,0.55,3631.1,3630.5,0.25401081]
[1732891980108,3.30399,3631.1,3630.4,2.67194986]
[1732891980319,0.005,3631.4,3630.4,2.67194986]
[1732891980320,3.30391,3631.2,3630.4,2.67194986]
[1732891980536,3.30411,3631.0,3630.3,0.7912]
[1732891980708,0.55,3631.0,3630.4,0.25400865]
[1732891981039,0.55,3631.0,3630.3,0.7912]
[1732891981271,0.330891,3631.1,3630.3,0.7912]
[1732891981272,3.30403,3631.1,3630.3,0.7912]
[1732891981541,0.55,3630.9,3630.4,0.25398899]
[1732891981701,2.75423,3630.8,3630.3,0.7912]
[1732891981898,0.55,3630.7,3630.3,0.7912]
[1732891982098,0.55,3630.4,3629.7,0.7742]
[1732891982299,2.75459,3630.3,3629.8,0.87416139]
[1732891982499,0.55,3630.6,3630.0,2.67194986]
[1732891982813,0.55,3630.4,3630.0,2.67194986]
[1732891983011,3.30456,3630.4,3629.9,0.2540294]
[1732891983348,2.75438,3630.6,3630.0,0.25410304]
[1732891983349,0.55,3630.5,3630.0,0.25410304]
[1732891983548,0.55,3630.5,3630.0,0.25413902]
[1732891983857,3.30445,3630.5,3630.0,0.25413902]
[1732891984161,3.30445,3630.5,3629.8,0.62013199]
[1732891984310,3.30445,3630.5,3629.9,0.2541354]
[1732891984515,0.54942026,3630.9,3629.9,0.2541354]
[1732891984516,0.55,3630.8,3630.1,0.8234]
[1732891984718,0.55,3630.8,3630.2,0.2541354]
[1732891984951,0.55,3630.8,3630.1,0.8234]
[1732891985732,0.55,3630.8,3630.1,3.57813]
[1732891985925,0.55,3630.8,3630.2,0.6709664]
[1732891987056,0.55,3630.8,3630.2,3.4256164]
[1732891987651,0.54942026,3630.9,3630.2,0.6709664]
[1732891988051,0.55,3630.8,3630.2,0.6709664]
[1732891988872,0.8130764,3630.8,3630.0,0.31870117]
[1732891989048,3.5672864,3630.8,3630.0,2.67194986]
[1732891990082,0.1630764,3630.8,3630.4,2.67194986]
[1732891990387,0.2630764,3630.8,3630.4,2.67194986]
[1732891990561,0.1630764,3630.8,3630.4,2.67194986]
[1732891991315,0.1630764,3630.8,3630.5,0.02754096]
[1732891991583,0.1630764,3630.8,3630.5,0.26994908]
[1732891991961,0.1630764,3630.8,3630.6,0.7539]
[1732891994645,0.1630764,3630.8,3629.7,2.75498]
[1732891994646,0.1630764,3630.8,3629.8,0.7639]
[1732891994845,0.1630764,3630.8,3630.0,2.75482]
[1732891995063,0.1630764,3630.8,3630.1,0.927364]
[1732891995392,0.55,3630.7,3629.8,0.7639]
[1732891996264,0.7043464,3630.7,3629.8,0.7639]
[1732891996602,2.75457,3630.4,3629.8,0.7639]
[1732891996761,0.00873,3630.4,3629.8,0.7639]
[1732891997271,0.55,3630.3,3629.8,0.7639]
[1732891997888,0.1630764,3630.4,3629.8,0.7639]
[1732891999113,0.55922937,3630.3,3629.8,0.7639]
[1732891999270,0.00873,3630.3,3629.8,0.7639]
[1732891999472,0.00873,3630.3,3630.0,0.802]
[1732892000300,0.1630764,3630.3,3630.0,0.802]
[1732892001696,0.1630764,3630.3,3629.6,0.8065]
[1732892001919,0.55,3630.2,3629.6,0.8065]
[1732892002208,0.55,3630.2,3628.1,3.10026986]
[1732892002209,0.55,3630.0,3629.3,0.8065]
[1732892002917,0.55,3630.0,3629.3,0.7065]
[1732892003133,0.55,3630.0,3629.3,3.48938725]
[1732892003417,0.1543464,3630.0,3629.3,3.46184]
[1732892003600,0.1543464,3630.0,3629.3,0.7065]
[1732892003772,0.74158504,3630.0,3629.3,0.7065]
[1732892003977,4.29861504,3630.0,3629.3,0.7065]
[1732892004414,0.55,3629.9,3629.3,0.7065]
[1732892004598,0.55873,3629.9,3629.3,0.7065]
[1732892005385,0.1630764,3629.9,3629.3,0.7065]
[1732892005703,0.52985504,3629.9,3628.5,3.0]
[1732892005902,2.75497,3629.8,3628.8,0.793]
[1732892006072,2.7552,3629.5,3628.8,0.793]
[1732892006272,0.55,3629.4,3628.8,0.793]
[1732892006799,1.3522,3628.8,3627.5,3.5497]
[1732892007117,0.55,3628.6,3627.7,2.75651]
[1732892007317,0.55,3628.6,3627.5,3.57725756]
[1732892007318,0.55,3628.6,3627.6,2.75661]
[1732892007487,3.827577,3628.6,3627.5,0.793]
[1732892007832,3.827577,3628.6,3627.5,3.54971]
[1732892007833,1.071677,3628.6,3627.5,3.54971]
[1732892008285,3.827617,3628.6,3627.5,3.54971]
[1732892008489,0.971677,3628.6,3627.5,0.793]
[1732892008695,0.00873,3628.8,3628.0,3.54058]
[1732892008916,0.00873,3628.6,3628.2,2.75617]
[1732892009213,0.00873,3628.6,3628.0,0.7843]
[1732892009928,0.00873,3628.6,3627.5,0.02755579]
[1732892009929,2.75621,3628.2,3627.5,0.02755579]
[1732892010077,2.75621,3628.2,3627.1,2.75695]
[1732892010078,0.55,3628.2,3627.1,2.75696]
[1732892010275,0.55873,3628.2,3627.2,3.52803]
[1732892010514,0.55,3628.0,3627.2,0.7711]
[1732892011579,0.55,3628.0,3627.3,0.02756261]
[1732892011806,0.00116,3628.2,3628.0,0.7625]
[1732892012296,1.0197464,3629.5,3628.1,0.02755586]
[1732892012498,1.0197464,3629.5,3628.7,0.7802]
[1732892012696,0.1543464,3629.5,3628.7,0.8077514]
[1732892013020,0.1543464,3629.5,3629.0,2.7555]
[1732892013230,0.1543464,3629.5,3629.0,2.75557]
[1732892013376,0.1543464,3629.5,3629.1,2.75549]
[1732892013862,0.1543464,3629.5,3628.9,2.75564]
[1732892014129,0.1543464,3629.5,3629.1,2.75544]
[1732892014327,0.1543464,3629.5,3629.2,2.7554]
[1732892014684,0.1543464,3629.5,3629.0,2.75555]
[1732892015181,0.1543464,3629.5,3628.9,0.629162]
[1732892015387,2.7544,3630.6,3629.1,0.7578]
[1732892015388,0.788,3630.6,3629.1,0.7578]
[1732892015609,0.1,3630.9,3630.0,2.75481]
[1732892015817,0.1,3630.9,3629.9,2.75488]
[1732892016012,0.1,3630.9,3630.2,2.75465]
[1732892016317,0.2,3630.9,3630.1,2.75469]
[1732892016525,0.2,3630.9,3630.2,2.75465]
[1732892016684,0.1,3631.2,3630.3,0.793]
[1732892016887,0.1,3630.9,3630.3,3.54753]
[1732892017635,0.7641,3631.4,3630.5,2.75438]
[1732892017805,0.1,3631.3,3630.6,2.75435]
[1732892018431,0.1,3631.3,3630.7,2.75428]
[1732892018811,0.1,3631.3,3630.5,2.75439]
[1732892019120,0.1,3631.3,3630.6,2.75433]
[1732892019320,0.1,3631.3,3630.4,2.75451]
[1732892019523,0.1,3631.3,3630.3,0.793]
[1732892019524,0.65,3631.2,3630.3,0.793]
[1732892019727,0.06349625,3632.8,3631.0,0.8148]
[1732892019916,0.8184,3633.7,3632.4,0.8148]
[1732892019917,0.32818306,3633.6,3632.4,0.8148]
[1732892020099,2.87584091,3634.2,3632.4,0.8148]
[1732892020100,0.20511441,3633.3,3632.8,2.75267]
[1732892020299,0.1,3633.7,3633.0,2.75254]
[1732892021001,0.1,3633.9,3633.0,2.75254]
[1732892021198,0.1,3633.9,3633.0,0.8148]
[1732892021396,0.83026322,3634.7,3633.0,0.8148]
[1732892021397,0.01186322,3634.7,3633.3,3.56711]
[1732892021638,0.11186322,3634.7,3633.4,0.02751536]
[1732892021937,0.11186322,3634.7,3633.8,2.75192]
[1732892022134,0.11186322,3634.7,3633.6,2.75206]
[1732892022135,0.11186322,3634.7,3633.6,2.77957114]
[1732892022344,0.11186322,3634.7,3633.8,2.75191]
[1732892022644,0.01349625,3634.6,3633.5,2.75209]
[1732892022847,0.01349625,3634.6,3633.3,3.56706]
[1732892022848,0.01349625,3634.6,3633.3,0.8148]
[1732892023140,0.01349625,3634.3,3633.3,0.8148]
[1732892023340,0.01349625,3634.3,3633.4,0.02751492]
[1732892023341,0.1,3634.3,3633.4,0.02751492]
[1732892023502,0.1,3634.3,3633.4,0.38697741]
[1732892023701,0.1,3634.3,3633.4,0.35946249]
[1732892023919,0.1,3634.3,3633.4,3.11164249]
[1732892024239,0.1,3634.3,3633.4,0.35946249]
[1732892024734,0.11349625,3634.3,3633.4,0.35946249]
[1732892024938,0.27570588,3634.3,3633.3,0.8148]
[1732892025161,0.01349625,3633.8,3633.0,0.02751497]
[1732892025361,0.01349625,3633.8,3632.8,1.5343]
[1732892025565,0.01349625,3633.8,3632.4,1.5343]
[1732892025566,0.1,3633.5,3632.4,1.5343]
[1732892025738,0.16726,3633.4,3632.4,1.5343]
[1732892025935,0.1,3633.5,3632.4,1.5343]
[1732892026468,0.1,3634.1,3632.4,1.5343]
[1732892026651,0.1,3633.9,3632.5,2.78039054]
[1732892026824,0.1,3633.9,3632.7,2.75272]
[1732892027024,0.1,3633.9,3632.7,0.0275171]
[1732892027326,0.1,3633.9,3632.9,2.75259]
[1732892027526,0.1,3633.9,3633.0,2.75252]
[1732892027863,0.1,3633.9,3632.8,2.75269]
[1732892028046,0.1,3634.2,3633.1,2.75245]
[1732892028359,1.6726,3634.3,3633.2,2.75237]
[1732892028533,0.1,3634.2,3633.1,0.02751534]
[1732892028735,0.1,3633.9,3633.1,0.02751534]
[1732892029035,1.5726,3634.3,3633.0,2.75253]
[1732892029036,1.5726,3634.3,3633.3,2.75229]
[1732892029361,0.1,3633.9,3633.3,2.75229]
[1732892029547,0.1,3633.9,3633.1,2.75245]
[1732892029741,0.55,3633.8,3632.9,0.32116781]
[1732892029935,2.75173,3634.1,3632.9,0.32116781]
[1732892030151,5.50351,3634.1,3632.8,2.75269]
[1732892030350,2.75192,3633.9,3632.6,0.43146905]
[1732892030560,2.75173,3634.1,3632.8,2.75269]
[1732892030765,2.75181,3634.0,3632.8,2.75269]
[1732892030924,2.75187,3633.9,3632.6,3.18427905]
[1732892031124,3.027137,3633.8,3632.6,3.18427905]
[1732892031465,1.5699,3633.6,3632.6,2.78032977]
[1732892031668,0.12264843,3633.6,3632.6,2.78032977]
[1732892031963,0.55,3633.5,3632.6,2.78032977]
[1732892032124,0.12264843,3633.6,3632.4,1.5343]
[1732892032320,2.87476843,3633.6,3632.4,4.56182021]
[1732892032637,2.75227,3633.4,3632.0,2.75328]
[1732892032843,2.75229,3633.4,3632.2,2.75308]
[1732892033240,2.75239,3633.2,3632.0,2.78081332]
[1732892033572,2.75239,3633.2,3632.0,0.02752332]
[1732892033768,2.75239,3633.2,3631.7,1.6025]